{"text_format":"3","workbook":"xlsx","n_sheets":4,"sheets":["Start","Utgifter","Intäkter","Sammanfattning"],"not_rendered":{"charts":1,"defined_names":2},"read":"whole","date_system":"1900"}

{"sheet":"Start","index":0,"n_rows":8,"n_cols":2,"rows_kept":8}
[null,"OM DEN HÄR MALLEN"]
[null,"Använd den här arbetsboken för en evenemangsbudget för att spåra utgifter och intäkter från ett evenemang."]
[null,"Fyll i evenemangets namn och ange information i tabeller i kalkylbladet Utgifter och kalkylbladet Intäkter."]
[null,"Summa utgifter och summa intäkter beräknas automatiskt."]
[null,"Sammanfattning av vinst och förlust och diagrammet uppdateras automatiskt i kalkylbladet Sammanfattning."]
[null,"Obs! "]
[null,"Ytterligare anvisningar finns i kolumn A i varje kalkylblad. Den här texten har avsiktligt dolts. Om du vill ta bort texten markerar du kolumn A och väljer sedan TA BORT. Om du vill att texten ska visas markerar du kolumn A och ändrar sedan teckenfärg."]
[null,"Om du vill läsa mer om tabeller trycker du på SKIFT och sedan på F10 i en tabell. Välj alternativet TABELL och sedan ALTERNATIV TEXT."]

{"sheet":"Utgifter","index":1,"n_rows":33,"n_cols":8,"rows_kept":33,"merged":[[0,5,0,7],[1,1,1,7],[2,6,2,7]]}
["Ange beräknad och faktisk utgifter för varje kategori i respektive tabell i det här kalkylbladet. Summa utgifter beräknas automatiskt. Anvisningar för hur du använder det här kalkylbladet finns i cellerna i den här kolumnen. Använd nedåtpil för att komma igång."]
["Ange evenemangets namn i cellen till höger för att anpassa rubriken för det här och de andra kalkylbladen.","Evenemangsbudget för \nEvenemangets namn"]
["Etiketten Utgifter finns i cell G3.",{"$nulls":5}," Utgifter"]
["Etiketten Beräknad finns i cell G4 och etiketten Faktisk i cell H4.",{"$nulls":5},"Beräknad","Faktisk"]
["Etiketten Summa utgifter finns i cellen till höger. Beräknad summa utgifter beräknas automatiskt i cell G5. Faktisk summa utgifter och datastapeln som visar faktisk summa utgifter uppdateras automatiskt i cell H5. Fler anvisningar finns i cell A7.","Summa utgifter",{"$nulls":4},{"$f":"SUM(C12,C20,C26,C33,G12,G20,G25)","v":{"v":1145,"d":"1,145.00 kr"}},{"$f":"SUM(D12,D20,D26,D33,H12,H20,H25)","v":{"v":395,"d":"395.00 kr"}}]
[]
["Ange utgifter för lokal i tabellen som börjar i cellen till höger och utgifter för förfriskningar i tabellen som börjar i cell F7. Fler anvisningar finns i cell A14.","Lokal","Beräknad","Faktisk",null,"Förfriskningar","Beräknad","Faktisk"]
[null,"Avgifter för rum och sal",{"v":500,"d":"500.00 kr"},{"v":250,"d":"250.00 kr"},null,"Mat"]
[null,"Personal på plats",{"v":400,"d":"400.00 kr"},{"v":50,"d":"50.00 kr"},null,"Dryck"]
[null,"Utrustning",{"$nulls":3},"Linne"]
[null,"Bord och stolar",{"$nulls":3},"Personal och serviceavgifter"]
[null,"Summa",{"$f":"SUBTOTAL(109,UtgifterFörLokal[Beräknad])","v":{"v":900,"d":"900.00 kr"}},{"$f":"SUBTOTAL(109,UtgifterFörLokal[Faktisk])","v":{"v":300,"d":"300.00 kr"}},null,"Summa",{"$f":"SUBTOTAL(109,UtgifterFörFörfriskningar[Beräknad])","v":{"v":0,"d":"0.00 kr"}},{"$f":"SUBTOTAL(109,UtgifterFörFörfriskningar[Faktisk])","v":{"v":0,"d":"0.00 kr"}}]
[]
["Ange utgifter för dekorationer i tabellen som börjar i cellen till höger och utgifter för program i tabellen som börjar i cell F14. Fler anvisningar finns i cell A22.","Dekorationer","Beräknad","Faktisk",null,"Program","Beräknad","Faktisk"]
[null,"Blommor",{"v":200,"d":"200.00 kr"},{"v":50,"d":"50.00 kr"},null,"Artister"]
[null,"Ljus",{"$nulls":3},"Talare"]
[null,"Belysning",{"$nulls":3},"Resor"]
[null,"Ballonger",{"$nulls":3},"Hotell"]
[null,"Pappersmaterial",{"$nulls":3},"Övrigt"]
[null,"Summa",{"$f":"SUBTOTAL(109,UtgifterFörDekorationer[Beräknad])","v":{"v":200,"d":"200.00 kr"}},{"$f":"SUBTOTAL(109,UtgifterFörDekorationer[Faktisk])","v":{"v":50,"d":"50.00 kr"}},null,"Summa",{"$f":"SUBTOTAL(109,UtgifterFörProgram[Beräknad])","v":{"v":0,"d":"0.00 kr"}},{"$f":"SUBTOTAL(109,UtgifterFörProgram[Faktisk])","v":{"v":0,"d":"0.00 kr"}}]
[]
["Ange utgifter för reklam i tabellen som börjar i cellen till höger och utgifter för priser i tabellen som börjar i cell F22. Fler anvisningar finns i cell A28.","Reklam","Beräknad","Faktisk",null,"Priser","Beräknad","Faktisk"]
[null,"Grafik",{"v":45,"d":"45.00 kr"},{"v":45,"d":"45.00 kr"},null,"Band/plaketter/troféer"]
[null,"Fotokopiering/utskrifter",{"$nulls":3},"Gåvor"]
[null,"Porto",{"$nulls":3},"Summa",{"$f":"SUBTOTAL(109,UtgifterFörPriser[Beräknad])","v":{"v":0,"d":"0.00 kr"}},{"$f":"SUBTOTAL(109,UtgifterFörPriser[Faktisk])","v":{"v":0,"d":"0.00 kr"}}]
[null,"Summa",{"$f":"SUBTOTAL(109,UtgifterFörReklam[Beräknad])","v":{"v":45,"d":"45.00 kr"}},{"$f":"SUBTOTAL(109,UtgifterFörReklam[Faktisk])","v":{"v":45,"d":"45.00 kr"}}]
[]
["Ange övriga utgifter i tabellen som börjar i cellen till höger.","Övrigt","Beräknad","Faktisk"]
[null,"Telefon"]
[null,"Transport"]
[null,"Kontorsmaterial"]
[null,"Faxtjänster"]
[null,"Summa",{"$f":"SUBTOTAL(109,ÖvrigaUtgifter[Beräknad])","v":{"v":0,"d":"0.00 kr"}},{"$f":"SUBTOTAL(109,ÖvrigaUtgifter[Faktisk])","v":{"v":0,"d":"0.00 kr"}}]

{"sheet":"Intäkter","index":2,"n_rows":30,"n_cols":7,"rows_kept":30,"merged":[[1,1,1,6],[2,5,2,6]]}
["Ange beräknad och faktisk intäkter för varje kategori i respektive tabell i det här kalkylbladet. Summa intäkter beräknas automatiskt. Anvisningar för hur du använder det här kalkylbladet finns i cellerna i den här kolumnen. Använd nedåtpil för att komma igång."]
["Evenemangets namn uppdateras automatiskt i cellen till höger.",{"$f":"Utgifter!B2","v":"Evenemangsbudget för \nEvenemangets namn"}]
["Etiketten Intäkter finns i cell F3.",{"$nulls":4}," Intäkter"]
["Etiketten Beräknad finns i cell F4 och etiketten Faktisk i cell G4.",{"$nulls":4},"Beräknad","Faktisk"]
["Etiketten Summa intäkter finns i cellen till höger. Beräknad summa intäkter beräknas automatiskt i cell F5. Faktisk summa intäkter och datastapeln som visar faktisk summa intäkter uppdateras automatiskt i cell G5.","Summa intäkter",{"$nulls":3},{"$f":"SUM(Inträde[[#Totals],[Beräknad summa]],ReklamIProgrammet[[#Totals],[Beräknad summa]],UtställareOchFörsäljare[[#Totals],[Beräknad summa]],SåldaProdukter[[#Totals],[Beräknad summa]])","v":{"v":1936,"d":"1,936.00 kr"}},{"$f":"SUM(Inträde[[#Totals],[Faktisk summa]],ReklamIProgrammet[[#Totals],[Faktisk summa]],UtställareOchFörsäljare[[#Totals],[Faktisk summa]],SåldaProdukter[[#Totals],[Faktisk summa]])","v":{"v":1831,"d":"1,831.00 kr"}}]
["Etiketten Inträde finns i cellen till höger.","Inträde"]
["Ange beräknad och faktisk inträdesantal med biljettpriser i tabellen som börjar i cellen till höger. Beräknad och faktisk intäkter från inträde beräknas automatiskt. Fler anvisningar finns i cell A12.","Beräknad","Faktisk","Typ","Pris","Beräknad summa","Faktisk summa"]
[null,300,278,"Vuxna à",{"v":5,"d":"5.00 kr"},{"$f":"B8*E8","v":{"v":1500,"d":"1,500.00 kr"}},{"$f":"C8*E8","v":{"v":1390,"d":"1,390.00 kr"}}]
[null,197,195,"Barn à",{"v":2,"d":"2.00 kr"},{"$f":"B9*E9","v":{"v":394,"d":"394.00 kr"}},{"$f":"C9*E9","v":{"v":390,"d":"390.00 kr"}}]
[null,42,51,"Övriga à",{"v":1,"d":"1.00 kr"},{"v":42,"d":"42.00 kr"},{"v":51,"d":"51.00 kr"}]
[null," ",{"$nulls":3},{"$f":"SUBTOTAL(109,Inträde[Beräknad summa])","v":{"v":1936,"d":"1,936.00 kr"}},{"$f":"SUBTOTAL(109,Inträde[Faktisk summa])","v":{"v":1831,"d":"1,831.00 kr"}}]
["Etiketten Reklam i programmet finns i cellen till höger.","Reklam i programmet"]
["Ange beräknad och faktisk reklam i programmet och reklampris i tabellen som börjar i cellen till höger. Beräknad och faktisk intäkter från reklam beräknas automatiskt. Fler anvisningar finns i cell A18.","Beräknad","Faktisk","Typ","Pris","Beräknad summa","Faktisk summa"]
[{"$nulls":3},"Omslag à",null,{"$f":"B14*E14","v":{"v":0,"d":"0.00 kr"}},{"$f":"C14*E14","v":{"v":0,"d":"0.00 kr"}}]
[{"$nulls":3},"A5 à",null,{"$f":"B15*E15","v":{"v":0,"d":"0.00 kr"}},{"$f":"C15*E15","v":{"v":0,"d":"0.00 kr"}}]
[{"$nulls":3},"A6 à",null,{"v":0,"d":"0.00 kr"},{"v":0,"d":"0.00 kr"}]
[null," ",{"$nulls":3},{"$f":"SUBTOTAL(109,ReklamIProgrammet[Beräknad summa])","v":{"v":0,"d":"0.00 kr"}},{"$f":"SUBTOTAL(109,ReklamIProgrammet[Faktisk summa])","v":{"v":0,"d":"0.00 kr"}}]
["Etiketten Utställare eller försäljare finns i cellen till höger.","Utställare/försäljare"]
["Ange beräknad och faktisk antal utställare och försäljare samt monterpris i tabellen som börjar i cellen till höger. Beräknad och faktisk intäkter beräknas automatiskt. Fler anvisningar finns i cell A24.","Beräknad","Faktisk","Typ","Pris","Beräknad summa","Faktisk summa"]
[{"$nulls":3},"Stora montrar à",null,{"$f":"B20*E20","v":{"v":0,"d":"0.00 kr"}},{"$f":"C20*E20","v":{"v":0,"d":"0.00 kr"}}]
[{"$nulls":3},"Mellanstora montrar à",null,{"$f":"B21*E21","v":{"v":0,"d":"0.00 kr"}},{"$f":"C21*E21","v":{"v":0,"d":"0.00 kr"}}]
[{"$nulls":3},"Små montrar à",null,{"v":0,"d":"0.00 kr"},{"v":0,"d":"0.00 kr"}]
[null," ",{"$nulls":3},{"$f":"SUBTOTAL(109,UtställareOchFörsäljare[Beräknad summa])","v":{"v":0,"d":"0.00 kr"}},{"$f":"SUBTOTAL(109,UtställareOchFörsäljare[Faktisk summa])","v":{"v":0,"d":"0.00 kr"}}]
["Etiketten Sålda produkter finns i cellen till höger.","Sålda produkter"]
["Ange beräknad och faktisk antal sålda produkter och produktpris i tabellen som börjar i cellen till höger. Beräknad och faktisk intäkter beräknas automatiskt.","Beräknad","Faktisk","Typ","Pris","Beräknad summa","Faktisk summa"]
[{"$nulls":3},"Produkter à",null,{"$f":"B26*E26","v":{"v":0,"d":"0.00 kr"}},{"$f":"C26*E26","v":{"v":0,"d":"0.00 kr"}}]
[{"$nulls":3},"Produkter à",null,{"$f":"B27*E27","v":{"v":0,"d":"0.00 kr"}},{"$f":"C27*E27","v":{"v":0,"d":"0.00 kr"}}]
[{"$nulls":3},"Produkter à",null,{"v":0,"d":"0.00 kr"},{"v":0,"d":"0.00 kr"}]
[{"$nulls":3},"Produkter à",null,{"v":0,"d":"0.00 kr"},{"v":0,"d":"0.00 kr"}]
[null," ",{"$nulls":3},{"$f":"SUBTOTAL(109,SåldaProdukter[Beräknad summa])","v":{"v":0,"d":"0.00 kr"}},{"$f":"SUBTOTAL(109,SåldaProdukter[Faktisk summa])","v":{"v":0,"d":"0.00 kr"}}]

{"sheet":"Sammanfattning","index":3,"n_rows":9,"n_cols":4,"rows_kept":9,"merged":[[1,1,1,3],[2,2,2,3],[8,1,8,4],[9,1,9,3]]}
["Sammanfattning av vinst och förlust och diagrammet som visar summa intäkter och utgifter uppdateras automatiskt i det här kalkylbladet. Anvisningar för hur du använder det här kalkylbladet finns i cellerna i den här kolumnen. Använd nedåtpil för att komma igång."]
["Evenemangets namn uppdateras automatiskt i cellen till höger.",{"$f":"Utgifter!B2","v":"Evenemangsbudget för \nEvenemangets namn"}]
["Etiketten Sammanfattning av vinst – förlust finns i cell C3. Fler anvisningar finns i cell A5.",null,"Sammanfattning av vinst – förlust"]
[]
["Tabellen Summa som börjar i cellen till höger uppdateras automatiskt. Fler anvisningar finns i cell A9.","Summa","Beräknad","Faktisk"]
[null,"Summa intäkter",{"$f":"Intäkter!F5","v":{"v":1936,"d":"1,936.00 kr"}},{"$f":"Intäkter!G5","v":{"v":1831,"d":"1,831.00 kr"}}]
[null,"Summa utgifter",{"$f":"Utgifter!G5","v":{"v":1145,"d":"1,145.00 kr"}},{"$f":"Utgifter!H5","v":{"v":395,"d":"395.00 kr"}}]
[null,"Summa vinst (eller förlust)",{"$f":"C6-C7","v":{"v":791,"d":"791.00 kr"}},{"$f":"D6-D7","v":{"v":1436,"d":"1,436.00 kr"}}]
["Grupperat stående stapeldiagram som visar en jämförelse mellan beräknad och faktisk summa intäkter och summa utgifter finns i cellen till höger.","Grupperat stående stapeldiagram som visar en jämförelse mellan beräknad och faktisk summa intäkter och summa utgifter finns i den här cellen."]